fUSD/lending_fUSD_20240218
["ID","MTS","AMOUNT","RATE_DAILY","PERIOD"]
[314398417,1708282237661,-1128.06027362,0.00032899,4]
[314398450,1708282240026,-1869.16322818,0.00032899,4]
[314398451,1708282240142,-490.64507162,0.00032899,4]
[314398452,1708282240211,-566.0466,0.00032899,4]
[314398453,1708282241016,-389.23658744,0.00032899,4]
[314398454,1708282241077,-1761.01185674,0.00032899,4]
[314398456,1708282241086,-4000.0,0.000329,2]
[314398458,1708282241095,-726.8,0.00033599,2]
[314398460,1708282241105,-155.0,0.00034,4]
[314398462,1708282241114,-2037.18814326,0.000342,2]
[314398542,1708282242395,-574.08241182,0.000342,2]
[314398543,1708282242407,-594.743224,0.000342,2]
[314398544,1708282242509,-793.98622092,0.000342,2]
[314398545,1708282242519,-1529.0,0.000343,2]
[314398546,1708282242528,-450.077304,0.0003452,2]
[314398547,1708282242538,-2223.61469959,0.0003452,2]
[314398548,1708282242550,-635.15854041,0.0003452,2]
[314398549,1708282242560,-675.115956,0.00034794,2]
[314398550,1708282242569,-4288.15986,0.00034794,2]
[314398551,1708282242579,-159.506895,0.00034881,2]
[314398552,1708282242588,-174.615992,0.00034881,2]
[314398553,1708282242597,-91.93533857,0.00034881,2]
[314398554,1708282242610,-72.60316343,0.00034881,2]
[314398555,1708282242619,-173.634094,0.00034881,2]
[314398556,1708282242629,-853.177997,0.00034881,2]
[314398557,1708282242639,-900.154609,0.00034931,2]
[314398558,1708282242649,-93.92601593,0.00034931,2]
[314398559,1708282242661,-5623.62046507,0.00034931,2]
[314398560,1708282242671,-1125.193261,0.00035068,2]
[314398561,1708282242681,-6249.58484855,0.00035068,2]
[314398562,1708282242693,-470.02665923,0.00035068,2]
[314398563,1708282242708,-427.32159322,0.00035068,2]
[314398564,1708282242717,-89.49298148,0.00035317,2]
[314398565,1708282242734,-763.68501552,0.00035317,2]
[314398566,1708282242743,-1575.270566,0.00035342,2]
[314398567,1708282242752,-2970.42700005,0.00035342,2]
[314398568,1708282242764,-6340.72684222,0.00035342,2]
[314398569,1708282242776,-694.55249973,0.00035342,2]
[314398571,1708282242785,-153.47,0.00035465,2]
[314398572,1708282242794,-1271.37934446,0.00035477,2]
[314398573,1708282242811,-174.51065554,0.00035477,2]
[314398574,1708282242820,-500.0,0.00035488,2]
[314398575,1708282242830,-1097.93,0.00035491,2]
[314398576,1708282242839,-921.29680043,0.00035493,2]
[314398577,1708282242904,-22978.70319957,0.00035493,2]
[314398578,1708282242914,-200.0,0.00035498,2]
[314398579,1708282242923,-1898.65,0.00035503,2]
[314398580,1708282242933,-250.0,0.0003551,2]
[314398581,1708282242942,-2373.53,0.0003551,2]
[314398582,1708282242953,-153.0,0.00035516,2]
[314398583,1708282242962,-1000.0,0.00035521,2]
[314398584,1708282242972,-8800.22,0.00035535,2]
[314398585,1708282242981,-222.71,0.00035547,2]
[314398586,1708282242992,-234.59490499,0.00035548,2]
[314398587,1708282243002,-6940.3,0.00035558,2]
[314398588,1708282243011,-6768.70239299,0.00035565,2]
[314398592,1708282245436,-234.59490499,0.00035555,2]
[314398593,1708282245447,-234.59490499,0.00035555,2]
[314398594,1708282245457,-2450.06760701,0.00035565,2]
[314398595,1708282245467,-234.59490499,0.00035565,2]
[314398596,1708282245476,-8346.84,0.00035575,2]
[314398597,1708282245486,-200.0,0.00035705,2]
[314398598,1708282245495,-150.0,0.00035705,2]
[314398599,1708282245506,-164.538502,0.00035753,2]
[314398600,1708282245516,-853.177997,0.00035753,2]
[314398601,1708282245525,-205.55,0.00035781,2]
[314398602,1708282245534,-234.59490499,0.00035839,2]
[314398603,1708282245543,-156.32,0.00035849,2]
[314398604,1708282245552,-726.8,0.00035862,2]
[314398605,1708282245564,-205.55,0.00035879,2]
[314398606,1708282245573,-205.55,0.00035977,2]
[314398607,1708282245582,-205.55,0.00036075,2]
[314398608,1708282245592,-153.523526,0.00036077,2]
[314398609,1708282245601,-156.32,0.00036105,2]
[314398610,1708282245611,-205.55,0.00036173,2]
[314398611,1708282245620,-853.177997,0.00036189,2]
[314398612,1708282245630,-205.55,0.00036271,2]
[314398613,1708282245639,-156.32,0.00036361,2]
[314398614,1708282245648,-205.55,0.0003637,2]
[314398615,1708282245658,-205.55,0.00036468,2]
[314398616,1708282245667,-174.58,0.00036558,2]
[314398617,1708282245676,-205.55,0.00036566,2]
[314398618,1708282245686,-234.59490499,0.00036615,2]
[314398619,1708282245695,-156.32,0.00036618,2]
[314398620,1708282245705,-174.615992,0.00036625,2]
[314398621,1708282245714,-164.538502,0.00036625,2]
[314398622,1708282245725,-853.177997,0.00036625,2]
[314398623,1708282245734,-205.55,0.00036664,2]
[314398624,1708282245743,-205.55,0.00036762,2]
[314398625,1708282245752,-234.59490499,0.0003679,2]
[314398626,1708282245762,-234.59490499,0.0003679,2]
[314398627,1708282245771,-448.74010236,0.00036798,2]
[314398628,1708282245781,-11435.092962,0.000368,2]
[314398629,1708282245790,-1898.65,0.00036817,2]
[314398630,1708282245800,-205.55,0.0003686,2]
[314398631,1708282245809,-156.32,0.00036874,2]
[314398632,1708282245819,-205.55,0.00036958,2]
[314398633,1708282245828,-234.59490499,0.0003699,2]
[314398634,1708282245838,-234.59490499,0.0003699,2]
[314398636,1708282245847,-10046.63675915,0.00037,5]
[314398638,1708282245857,-448.74010232,0.00037056,2]
[314398640,1708282245867,-205.55,0.00037057,2]
[314398642,1708282245877,-156.32,0.0003713,2]
[314398644,1708282245887,-234.59490499,0.00037145,2]
[314398646,1708282245896,-205.55,0.00037155,2]
[314398648,1708282245905,-153.47,0.00037239,2]
[314398650,1708282245913,-205.55,0.00037253,2]
[314398652,1708282245922,-205.55,0.00037351,2]
[314398654,1708282245932,-156.32,0.00037386,2]
[314398656,1708282245941,-448.74010232,0.00037411,2]
[314398658,1708282245950,-127.81723438,0.00037449,2]
[314398661,1708282245972,-77.73276562,0.00037449,2]
[314398662,1708282245981,-205.55,0.00037547,2]
[314398663,1708282245990,-156.32,0.00037642,2]
[314398664,1708282245998,-205.55,0.00037645,2]
[314398665,1708282246007,-234.59490499,0.00037683,2]
[314398666,1708282246016,-1187.8292,0.00037693,2]
[314398667,1708282246025,-2500.0,0.00037693,2]
[314398668,1708282246034,-150.0,0.000377,32]
[314398669,1708282246043,-150.0,0.000377,6]
[314398670,1708282246052,-371.318039,0.000377,2]
[314398671,1708282246061,-213.49682602,0.000377,2]
[314398672,1708282246069,-448.74010232,0.00037767,2]
[314398673,1708282246079,-149.2051339,0.00037769,2]
[314398674,1708282246091,-85.38977109,0.00037769,2]
[314398675,1708282246100,-3198.366,0.00037779,2]
[314398676,1708282246109,-234.59490499,0.00037783,2]
[314398678,1708282246119,-234.59490499,0.00037783,2]
[314398680,1708282246128,-234.59490499,0.00037783,2]
[314398682,1708282246137,-234.59490499,0.00037783,2]
[314398684,1708282246146,-392.35000445,0.00037792,2]
[314398686,1708282246155,-500.0,0.00037792,2]
[314398688,1708282246164,-500.0,0.00037792,2]
[314398690,1708282246175,-222.46627938,0.00037792,2]
[314398692,1708282246192,-234.59490499,0.00037783,2]
[314398694,1708282246201,-277.53372062,0.00037792,2]
[314398696,1708282246211,-500.0,0.00037792,2]
[314398698,1708282246220,-500.0,0.00037792,2]
[314398700,1708282246229,-171.06219236,0.00037792,2]
[314398702,1708282246238,-198.12513738,0.00037792,2]
[314398704,1708282246248,-945.48404465,0.00037793,2]
[314398706,1708282246288,-2650.39642541,0.00037793,2]
[314398708,1708282246300,-1419.04559478,0.00037793,2]
[314398711,1708282246317,-212089.03053472,0.00037793,2]
[314398714,1708282246333,-234.59490499,0.00037783,2]
[314398716,1708282246343,-1898.98396185,0.00037793,2]
[314398718,1708282246354,-1999.72451456,0.00037793,2]
[314398721,1708282270314,4255047.1256972,0.00023,2]
[314398723,1708282420631,177.1,0.00016712,2]
[314398724,1708282432046,2730647.92318729,0.00023,2]
[314398725,1708282432076,24040.0,0.00023,2]
[314398726,1708282432104,958.48640505,0.00023,2]
[314398727,1708282432129,5414.05196836,0.00023,2]
[314398728,1708282432154,5414.05196836,0.00023,2]
[314398729,1708282432178,5414.05196836,0.00023,2]
[314398730,1708282432202,5414.05196836,0.00023,2]
[314398731,1708282432226,5414.05196836,0.00023,2]
[314398732,1708282432252,5414.05196836,0.00023,2]
[314398733,1708282432277,5414.05196836,0.00023,2]
[314398734,1708282432301,5414.05196836,0.00023,2]
[314398735,1708282432324,5414.05196836,0.00023,2]
[314398736,1708282432348,5414.05196836,0.00023,2]
[314398737,1708282432372,5414.05196836,0.00023,2]
[314398738,1708282432618,5414.05196836,0.00023,2]
[314398739,1708282432642,3991742.6698074,0.00023,2]
[314398740,1708282448954,32432.28935096,0.0002,2]
[314398741,1708282464433,387.33762023,0.000137,2]
[314398744,1708282699485,173.87,0.00023689,2]
[314398745,1708282888693,236.25268828,0.00023571,2]
[314398746,1708283169686,173.87,0.00021443,2]
[314398747,1708283177290,150.69443588,0.00023986,2]
[314398767,1708283431598,-644.75086202,0.00025407,2]
[314398768,1708283431610,-212.21164598,0.00025407,2]
[314398769,1708283431620,-414.74142257,0.00025535,2]
[314398770,1708283431629,-150.0,0.00025596,2]
[314398771,1708283431640,-10000.0,0.00025885,2]
[314398772,1708283431649,-200.0,0.00026127,2]
[314398773,1708283431658,-150.0,0.00026144,2]
[314398774,1708283431668,-150.0,0.00026222,2]
[314398775,1708283431678,-1031.57,0.00026347,2]
[314398776,1708283431687,-151.28,0.00026361,2]
[314398777,1708283431696,-150.0,0.00026366,2]
[314398778,1708283431705,-150.0,0.00026366,2]
[314398779,1708283431714,-15100.95938259,0.00026367,2]
[314398780,1708283431727,-8799.04061741,0.00026367,2]
[314398781,1708283431736,-2050.79,0.00026367,2]
[314398782,1708283431745,-692.6,0.00026395,2]
[314398783,1708283431754,-1337.24,0.00026404,2]
[314398784,1708283431763,-692.6,0.00026467,2]
[314398785,1708283431772,-1110.56889458,0.00026486,2]
[314398786,1708283431784,-543.29728188,0.00026486,2]
[314398787,1708283431795,-181.09382354,0.00026486,2]
[314398788,1708283431804,-503.62525912,0.0002652,2]
[314398789,1708283431820,-1348.79474088,0.0002652,2]
[314398790,1708283431829,-692.6,0.0002654,2]
[314398791,1708283431839,-203.60525912,0.00026548,2]
[314398792,1708283431851,-1310.51141864,0.00026548,2]
[314398793,1708283431862,-485.88332224,0.00026548,2]
[314398794,1708283431872,-999.99,0.00026548,2]
[314398795,1708283431881,-706.96333017,0.00026595,2]
[314398796,1708283431890,-2045.5,0.00026596,2]
[314398797,1708283431899,-4378.02,0.00026596,2]
[314398798,1708283431909,-692.6,0.00026612,2]
[314398799,1708283431918,-1097.93,0.00026638,2]
[314398800,1708283431927,-9999.99,0.00026638,2]
[314398801,1708283431936,-9080.27,0.00026638,2]
[314398802,1708283431945,-5179.29674609,0.00026661,2]
[314398803,1708283431956,-37591.78,0.00026665,2]
[314398804,1708283431965,-500.0,0.00026676,2]
[314398805,1708283431975,-692.6,0.00026684,2]
[314398806,1708283431984,-150.0,0.00026692,2]
[314398808,1708283431993,-5486.67628411,0.000267,2]
[314398809,1708283432002,-692.6,0.00026757,2]
[314398810,1708283432012,-692.6,0.00026829,2]
[314398811,1708283432021,-500.0,0.000269,2]
[314398812,1708283432030,-1072.65,0.000269,2]
[314398813,1708283432040,-692.6,0.00026901,2]
[314398814,1708283432049,-250.0,0.0002696,2]
[314398815,1708283432059,-500.0,0.0002696,2]
[314398816,1708283432068,-922.59,0.0002696,2]
[314398817,1708283432078,-692.6,0.00026974,2]
[314398818,1708283432087,-692.6,0.00027046,2]
[314398819,1708283432096,-1908.4,0.00027084,2]
[314398820,1708283432105,-2218.5,0.00027084,2]
[314398821,1708283432115,-692.6,0.00027119,2]
[314398822,1708283432124,-200.0,0.00027133,2]
[314398823,1708283432134,-499.99,0.00027133,2]
[314398824,1708283432143,-41373.59,0.00027133,2]
[314398825,1708283432152,-692.6,0.00027191,2]
[314398826,1708283432161,-150.0,0.0002724,2]
[314398827,1708283432171,-174.59,0.00027261,2]
[314398828,1708283432180,-692.6,0.00027263,2]
[314398829,1708283432190,-5179.29674608,0.00027281,2]
[314398830,1708283432199,-250.0,0.00027331,2]
[314398831,1708283432207,-692.6,0.00027336,2]
[314398832,1708283432217,-2640.62,0.00027397,2]
[314398833,1708283432226,-153.47,0.000274,2]
[314398834,1708283432235,-692.6,0.00027408,2]
[314398835,1708283432244,-3950.76,0.00027473,2]
[314398836,1708283432254,-692.6,0.00027481,2]
[314398837,1708283432263,-692.6,0.00027553,2]
[314398838,1708283432272,-2640.62,0.00027556,2]
[314398839,1708283432281,-1610.72483716,0.00027582,2]
[314398840,1708283432291,-2705.0,0.00027601,2]
[314398841,1708283432300,-692.6,0.00027625,2]
[314398842,1708283432310,-200.0,0.00027661,2]
[314398843,1708283432319,-4175.21,0.00027666,2]
[314398844,1708283432328,-692.6,0.00027698,2]
[314398845,1708283432337,-2640.62,0.00027714,2]
[314398846,1708283432346,-692.6,0.0002777,2]
[314398847,1708283432356,-150.0,0.00027788,2]
[314398848,1708283432365,-416.95,0.00027863,2]
[314398849,1708283432374,-2640.62,0.00027872,2]
[314398850,1708283432383,-157.75595832,0.000279,3]
[314398851,1708283432393,-1323.86211868,0.000279,2]
[314398852,1708283432402,-5179.29674608,0.000279,2]
[314398853,1708283432412,-52081.80117679,0.0002799,2]
[314398854,1708283432421,-585.96432036,0.0002799,2]
[314398855,1708283432431,-300.57687551,0.00027998,2]
[314398856,1708283432441,-300.0,0.00027999,2]
[314398857,1708283432450,-371607.96442079,0.00028,2]
[314398858,1708283432459,-1071.927,0.00028,2]
[314398859,1708283432469,-2640.62,0.0002803,2]
[314398860,1708283432479,-2937.10411449,0.000281,2]
[314398861,1708283432488,-2640.62,0.00028189,2]
[314398862,1708283432497,-500.0,0.00028258,2]
[314398863,1708283432507,-175.72,0.00028265,2]
[314398864,1708283432517,-800.0,0.00028317,2]
[314398865,1708283432526,-150.0,0.00028336,2]
[314398866,1708283432536,-2640.62,0.00028347,2]
[314398867,1708283432545,-2640.62,0.00028505,2]
[314398868,1708283432557,-1031.57,0.00028611,2]
[314398869,1708283432567,-2640.62,0.00028664,2]
[314398870,1708283432577,-654.69,0.00028751,2]
[314398871,1708283432587,-2640.62,0.00028822,2]
[314398872,1708283432596,-179.12,0.00028865,2]
[314398873,1708283432606,-150.0,0.00028884,2]
[314398874,1708283432615,-1479.12,0.00028924,2]
[314398875,1708283432626,-1927.52,0.0002895,2]
[314398876,1708283432639,-210.0,0.00029002,2]
[314398877,1708283432649,-2269.0,0.00029109,2]
[314398878,1708283432659,-513.45,0.00029135,2]
[314398879,1708283432669,-513.45,0.00029289,2]
[314398880,1708283432679,-4175.21,0.0002931,2]
[314398881,1708283432690,-192.3607383,0.00029432,2]
[314398882,1708283432699,-513.45,0.00029442,2]
[314398883,1708283432708,-311.87,0.0002956,2]
[314398884,1708283432718,-513.45,0.00029596,2]
[314398885,1708283432728,-250.0,0.00029598,2]
[314398886,1708283432738,-157.7559583,0.00029614,4]
[314398887,1708283432747,-513.45,0.00029749,2]
[314398888,1708283432757,-542.44322816,0.000299,2]
[314398889,1708283432766,-513.45,0.00029902,2]
[314398890,1708283432775,-333.37130561,0.0003,7]
[314398891,1708283432785,-103582.46637991,0.0003,2]
[314398892,1708283432802,-11411.141,0.0003,2]
[314398893,1708283432815,-25882.5,0.0003,2]
[314398894,1708283432826,-362.1013399,0.0003,2]
[314398895,1708283432837,-3273.1474338,0.0003,2]
[314398896,1708283432850,-1934.94999906,0.0003,2]
[314398897,1708283432861,-250.0,0.0003,2]
[314398905,1708283437619,-13756.45762693,0.0003,2]
[314398906,1708283437628,-150.99,0.0003,2]
[314398907,1708283437640,-513.45,0.00030056,2]
[314398908,1708283437650,-593.64618954,0.000301,2]
[314398909,1708283437659,-154.28,0.00030137,2]
[314398910,1708283437669,-2103.37452,0.00030137,2]
[314398911,1708283437679,-153.47,0.0003014,2]
[314398912,1708283437688,-877.36874167,0.00030175,2]
[314398913,1708283437700,-446.49337701,0.00030175,2]
[314398914,1708283437709,-513.45,0.00030209,2]
[314398915,1708283437719,-200.0,0.00030263,2]
[314398916,1708283437728,-335.35855887,0.00030362,2]
[314398917,1708283437748,-178.09144113,0.00030362,2]
[314398918,1708283437757,-513.45,0.00030516,2]
[314398919,1708283437766,-311.87,0.00030605,2]
[314398920,1708283437775,-194.52213151,0.00030669,2]
[314398921,1708283437787,-318.92786849,0.00030669,2]
[314398922,1708283437795,-513.45,0.00030822,2]
[314398923,1708283437807,-542.44322807,0.00030832,2]
[314398924,1708283437817,-1031.57,0.00030875,2]
[314398925,1708283437827,-4175.21,0.00030954,2]
[314398926,1708283437835,-513.45,0.00030976,2]
[314398927,1708283437845,-525.68748958,0.00031,7]
[314398928,1708283437854,-513.45,0.00031129,2]
[314398929,1708283437863,-513.45,0.00031282,2]
[314398930,1708283437872,-157.7559583,0.00031329,5]
[314398931,1708283437881,-513.45,0.00031436,2]
[314398932,1708283437890,-513.45,0.00031589,2]
[314398933,1708283437899,-311.87,0.00031651,2]
[314398934,1708283437909,-513.45,0.00031742,2]
[314398935,1708283437918,-542.44322807,0.00031763,2]
[314398936,1708283437927,-1457.11882231,0.00031781,7]
[314398937,1708283437937,-13303.4708558,0.00031781,7]
[314398938,1708283437946,-800.0,0.00031856,2]
[314398939,1708283437956,-513.45,0.00031896,2]
[314398941,1708283437965,-293.0,0.00031903,2]
[314398943,1708283437974,-154.28,0.00031963,2]
[314398944,1708283437983,-817.54,0.00032046,2]
[314398946,1708283437992,-513.45,0.00032049,2]
[314398948,1708283438002,-173.87,0.00032165,2]
[314398949,1708283438011,-1323.86211868,0.0003245,2]
[314398951,1708283438020,-200.0,0.00032555,2]
[314398952,1708283438029,-4175.21,0.00032597,2]
[314398953,1708283438038,-542.44322807,0.00032695,2]
[314398954,1708283438047,-311.87,0.00032696,2]
[314398955,1708283438056,-153.47,0.0003288,2]
[314398956,1708283438066,-8000.0,0.000329,2]
[314398957,1708283438076,-1412.67810369,0.00033,2]
[314398958,1708283438085,-157.7559583,0.00033043,6]
[314398959,1708283438094,-1031.57,0.00033139,2]
[314398960,1708283438103,-166.2,0.00033624,2]
[314398961,1708283438112,-542.44322807,0.00033626,2]
[314398962,1708283438122,-817.54,0.00033649,2]
[314398963,1708283438131,-311.87,0.00033742,2]
[314398964,1708283438140,-154.28,0.0003379,2]
[314398965,1708283438149,-8833.0,0.000338,2]
[314398966,1708283438158,-155.0,0.00034,4]
[314398967,1708283438168,-493.597711,0.00034,4]
[314398968,1708283438177,-8000.0,0.000342,2]
[314398969,1708283438186,-4175.21,0.00034241,2]
[314398970,1708283438195,-3097.75685,0.0003452,2]
[314398971,1708283438204,-863.251816,0.0003452,2]
[314398972,1708283438213,-7933.153146,0.0003452,2]
[314398973,1708283438222,-1751.105494,0.0003452,2]
[314398974,1708283438231,-609.141169,0.0003452,2]
[314398975,1708283438240,-5288.768764,0.0003452,2]
[314398976,1708283438249,-1167.403663,0.0003452,2]
[314398977,1708283438258,-5429.1,0.00034521,2]
[314398978,1708283438267,-542.44322807,0.00034558,2]
[314398979,1708283438277,-1323.86211868,0.00034725,2]
[314398980,1708283438286,-157.7559583,0.00034757,7]
[314398981,1708283438295,-311.87,0.00034787,2]
[314398982,1708283438305,-4646.635276,0.00034794,2]
[314398983,1708283438315,-1294.877724,0.00034794,2]
[314398984,1708283438324,-11899.729719,0.00034794,2]
[314398985,1708283438333,-2626.658241,0.00034794,2]
[314398986,1708283438342,-913.711754,0.00034794,2]
[314398987,1708283438352,-7933.153146,0.00034794,2]
[314398988,1708283438360,-1751.105494,0.00034794,2]
[314398989,1708283438370,-158.50565445,0.00034831,7]
[314398990,1708283438379,-161.28925189,0.00034831,7]
[314398991,1708283438389,-152.71199379,0.00034831,2]
[314398992,1708283438398,-2240.80250931,0.000349,2]
[314398993,1708283438407,-2240.8025093,0.000349,2]
[314398994,1708283438417,-2240.8025093,0.000349,2]
[314398995,1708283438426,-2240.8025093,0.000349,2]
[314398996,1708283438435,-2240.8025093,0.000349,2]
[314398997,1708283438445,-174.59,0.00034903,2]
[314398998,1708283438454,-6195.513701,0.00034931,2]
[314398999,1708283438464,-1726.503633,0.00034931,2]
[314399000,1708283438473,-15866.306292,0.00034931,2]
[314399001,1708283438482,-3502.210988,0.00034931,2]
[314399002,1708283438492,-1218.282339,0.00034931,2]
[314399003,1708283438502,-10577.537528,0.00034931,2]
[314399004,1708283438511,-2334.807326,0.00034931,2]
[314399005,1708283438520,-5000.0,0.00035,7]
[314399006,1708283438529,-7744.392127,0.00035068,2]
[314399007,1708283438538,-2158.129541,0.00035068,2]
[314399008,1708283438548,-19832.882865,0.00035068,2]
[314399009,1708283438559,-4377.763735,0.00035068,2]
[314399010,1708283438569,-1522.852923,0.00035068,2]
[314399011,1708283438578,-13221.92191,0.00035068,2]
[314399012,1708283438588,-2918.509157,0.00035068,2]
[314399013,1708283438597,-411.0,0.00035093,2]
[314399014,1708283438609,-168.13605804,0.00035242,2]
[314399015,1708283438630,-817.54,0.00035251,2]
[314399016,1708283438641,-161.28925182,0.00035292,7]
[314399017,1708283438652,-10842.148978,0.00035342,2]
[314399018,1708283438662,-3021.381357,0.00035342,2]
[314399019,1708283438671,-27766.036012,0.00035342,2]
[314399020,1708283438681,-6128.86923,0.00035342,2]
[314399021,1708283438691,-2131.994093,0.00035342,2]
[314399022,1708283438701,-18510.690674,0.00035342,2]
[314399023,1708283438710,-4085.91282,0.00035342,2]
[314399024,1708283438720,-800.0,0.00035396,2]
[314399025,1708283438730,-1031.57,0.00035403,2]
[314399026,1708283438740,-542.44322807,0.00035489,2]
[314399027,1708283438749,-164.44387204,0.00035516,8]
[314399028,1708283438758,-625.0,0.000356,2]
[314399029,1708283438768,-8000.0,0.000356,2]
[314399030,1708283438777,-500.0,0.00035616,2]
[314399031,1708283438787,-500.0,0.00035616,2]
[314399032,1708283438796,-500.0,0.00035616,2]
[314399033,1708283438805,-500.0,0.00035616,2]
[314399034,1708283438815,-570.29,0.00035616,2]
[314399035,1708283438824,-500.0,0.00035616,2]
[314399036,1708283438834,-500.0,0.00035616,2]
[314399037,1708283438843,-500.0,0.00035616,2]
[314399038,1708283438853,-259.33,0.00035616,2]
[314399039,1708283438862,-500.0,0.00035616,2]
[314399040,1708283438872,-648.59,0.00035616,2]
[314399041,1708283438881,-500.0,0.00035616,2]
[314399042,1708283438891,-500.0,0.00035616,2]
[314399043,1708283438901,-226.78,0.00035616,2]
[314399044,1708283438910,-500.0,0.00035616,2]
[314399045,1708283438919,-500.0,0.00035616,2]
[314399046,1708283438929,-500.0,0.00035616,2]
[314399047,1708283438938,-500.0,0.00035616,2]
[314399048,1708283438947,-500.0,0.00035616,2]
[314399049,1708283438956,-500.0,0.00035616,2]
[314399050,1708283438966,-500.0,0.00035616,2]
[314399051,1708283438975,-500.0,0.00035616,2]
[314399052,1708283438984,-500.0,0.00035616,2]
[314399053,1708283438994,-610.18155966,0.00035616,2]
[314399054,1708283439003,-500.0,0.00035616,2]
[314399055,1708283439013,-500.0,0.00035616,2]
[314399056,1708283439022,-571.1,0.00035616,2]
[314399057,1708283439031,-277.53372062,0.00035616,2]
[314399058,1708283439040,-500.0,0.00035616,2]
[314399059,1708283439051,-500.0,0.00035616,2]
[314399060,1708283439061,-500.0,0.00035616,2]
[314399061,1708283439070,-578.3,0.00035616,2]
[314399062,1708283439080,-500.0,0.00035616,2]
[314399063,1708283439089,-508.51923099,0.00035616,2]
[314399064,1708283439098,-198.12513738,0.00035616,2]
[314399065,1708283439108,-171.06219236,0.00035616,2]
[314399066,1708283439117,-154.28,0.00035616,2]
[314399067,1708283439127,-152.71199376,0.00035655,2]
[314399068,1708283439136,-161.28925182,0.00035753,8]
[314399069,1708283439147,-2240.8025093,0.00035795,2]
[314399070,1708283439156,-5429.1,0.00035798,2]
[314399071,1708283439165,-311.87,0.00035833,2]
[314399072,1708283439174,-4175.21,0.00035885,2]
[314399073,1708283439184,-161.28925182,0.00036213,9]
[314399074,1708283439193,-207.0,0.0003624,2]
[314399075,1708283439202,-8318.33840885,0.00036389,2]
[314399076,1708283439211,-8318.33840876,0.00036389,2]
[314399077,1708283439220,-8318.33840876,0.00036389,2]
[314399078,1708283439229,-8318.33840876,0.00036389,2]
[314399079,1708283439238,-8318.33840876,0.00036389,2]
[314399080,1708283439247,-8318.33840876,0.00036389,2]
[314399081,1708283439256,-8318.33840876,0.00036389,2]
[314399082,1708283439266,-542.44322807,0.00036421,2]
[314399083,1708283439275,-152.0,0.00036438,3]
[314399084,1708283439284,-157.7559583,0.00036471,8]
[314399085,1708283439293,-152.71199376,0.0003648,2]
[314399086,1708283439303,-200.0,0.00036624,2]
[314399087,1708283439312,-161.28925182,0.00036674,9]
[314399088,1708283439325,-5659.8645389,0.00036798,2]
[314399089,1708283439334,-5659.86453881,0.00036798,2]
[314399090,1708283439344,-5659.86453881,0.00036798,2]
[314399091,1708283439353,-5659.86453881,0.00036798,2]
[314399093,1708283439362,-5659.86453881,0.00036798,2]
[314399095,1708283439372,-5659.86453881,0.00036798,2]
[314399096,1708283439381,-12391.027403,0.000368,2]
[314399098,1708283439390,-31732.612585,0.000368,2]
[314399099,1708283439399,-2436.564678,0.000368,2]
[314399100,1708283439409,-21155.075056,0.000368,2]
[314399101,1708283439419,-817.54,0.00036853,2]
[314399102,1708283439428,-158.3062,0.00037,2]
[314399103,1708283439437,-100000.0,0.00037,2]
[314399104,1708283439446,-245000.0,0.00037,2]
[314399105,1708283439456,-15083.92,0.00037,2]
[314399106,1708283439466,-5000.0,0.00037,3]
[314399107,1708283439475,-155.0,0.00037,2]
[314399108,1708283439484,-311.08241579,0.00037,2]
[314399109,1708283439493,-500.0,0.00037,2]
[314399110,1708283439502,-470.77891623,0.00037,2]
[314399111,1708283439512,-3212.06332918,0.00037,27]